fUST/lending_fUST_20250929
["ID","MTS","AMOUNT","RATE_DAILY","PERIOD"]
[388399504,1759155619435,-500.0,0.00023989,2]
[388399505,1759155619466,-500.0,0.00023989,2]
[388399506,1759155619497,-500.0,0.00023989,2]
[388399507,1759155619528,-500.0,0.00023989,2]
[388399508,1759155619562,-539.85254478,0.00023989,2]
[388399509,1759155619592,-500.0,0.00023989,2]
[388399510,1759155619625,-500.0,0.00023989,2]
[388399511,1759155619657,-500.0,0.00023989,2]
[388399512,1759155619687,-500.0,0.00023989,2]
[388399513,1759155619872,-500.0,0.00023989,2]
[388399514,1759155619906,-500.0,0.00023989,2]
[388399515,1759155619939,-611.39400262,0.00023989,2]
[388399516,1759155619974,-500.0,0.00023989,2]
[388399517,1759155620009,-500.0,0.00023989,2]
[388399518,1759155620045,-480.0,0.00023989,2]
[388399519,1759155620077,-762.8,0.00023989,2]
[388399520,1759155620110,-402.44722605,0.00023989,2]
[388399521,1759155620140,-559.82,0.00023989,2]
[388399522,1759155620330,-484.01351364,0.00023989,2]
[388399523,1759155620360,-480.0,0.00023989,2]
[388399524,1759155620391,-480.0,0.00023989,2]
[388399525,1759155620421,-480.0,0.00023989,2]
[388399526,1759155620450,-500.0,0.00023989,2]
[388399527,1759155625984,-1200.0,0.00023987,2]
[388399528,1759155626015,-480.0,0.00023989,2]
[388399529,1759155636002,-730.43,0.00023989,2]
[388399530,1759155636037,-682.22,0.00023989,2]
[388399531,1759155637384,-5000.0,0.00023749,2]
[388399557,1759155646061,-5000.0,0.00023749,2]
[388399558,1759155646220,-281.35,0.00023989,2]
[388399559,1759155646255,-973.9,0.00023989,2]
[388399560,1759155646287,-480.0,0.00023989,2]
[388399561,1759155646326,-480.0,0.00023989,2]
[388399562,1759155646358,-1154.78,0.00023989,2]
[388399563,1759155646615,-7784.1359555,0.0002399,2]
[388399564,1759155646951,-10000.01,0.0002399,2]
[388399565,1759155646972,-10000.01,0.0002399,2]
[388399566,1759155647123,-10000.01,0.0002399,2]
[388399567,1759155650616,-10000.01,0.0002399,2]
[388399568,1759155650803,-10000.01,0.0002399,2]
[388399569,1759155656203,-480.0,0.00023989,2]
[388399570,1759155656245,-1696.71,0.00023989,2]
[388399571,1759155656288,-480.0,0.00023989,2]
[388399572,1759155656403,-4686.59,0.0002399,2]
[388399573,1759155656473,-2018.2442486,0.0002399,2]
[388399574,1759155656515,-300.0,0.00024,2]
[388399575,1759155656556,-183.292344,0.00024086,2]
[388399576,1759155656668,-4996.9368148,0.000241,2]
[388399577,1759155656696,-5357.68581255,0.000241,2]
[388399578,1759155656709,-500.0,0.000241,2]
[388399579,1759155656721,-500.0,0.000241,2]
[388399580,1759155656733,-500.0,0.000241,2]
[388399581,1759155656745,-500.0,0.000241,2]
[388399582,1759155656758,-500.0,0.000241,2]
[388399583,1759155656771,-500.0,0.000241,2]
[388399584,1759155656783,-500.0,0.000241,2]
[388399585,1759155656797,-500.0,0.000241,2]
[388399586,1759155656812,-373.59886101,0.000241,2]
[388399587,1759155656826,-268.72532644,0.000241,2]
[388399588,1759155666100,-5000.0,0.00023749,2]
[388399589,1759155666140,-0.01,0.00023989,2]
[388399590,1759155666284,-479.99,0.00023989,2]
[388399591,1759155666320,-480.0,0.00023989,2]
[388399592,1759155666354,-480.0,0.00023989,2]
[388399593,1759155666384,-480.0,0.00023989,2]
[388399594,1759155666415,-300.0,0.00024099,2]
[388399595,1759155666443,-231.27467356,0.000241,2]
[388399596,1759155666473,-500.0,0.000241,2]
[388399597,1759155666729,-500.0,0.000241,2]
[388399598,1759155666760,-500.0,0.000241,2]
[388399599,1759155666791,-500.0,0.000241,2]
[388399600,1759155666823,-500.0,0.000241,2]
[388399601,1759155667022,-500.0,0.000241,2]
[388399602,1759155667059,-500.0,0.000241,2]
[388399603,1759155667093,-150.0,0.000241,2]
[388399604,1759155667126,-500.0,0.000241,2]
[388399605,1759155667157,-437.9317725,0.000241,2]
[388399606,1759155667187,-500.0,0.000241,2]
[388399607,1759155667217,-500.0,0.000241,2]
[388399608,1759155667247,-500.0,0.000241,2]
[388399609,1759155667277,-500.0,0.000241,2]
[388399610,1759155667306,-500.0,0.000241,2]
[388399611,1759155667339,-324.146455,0.000241,2]
[388399612,1759155667380,-175.853545,0.000241,2]
[388399613,1759155667410,-500.0,0.000241,2]
[388399614,1759155667441,-160.0,0.00024161,4]
[388399615,1759155667473,-151.0,0.000242,5]
[388399616,1759155667506,-151.0,0.000242,7]
[388399617,1759155667539,-300.0,0.00024237,2]
[388399618,1759155667570,-559.10242026,0.00024262,2]
[388399619,1759155667603,-2022.09550407,0.00024262,2]
[388399620,1759155667635,-500.0,0.00024262,2]
[388399621,1759155667720,-2022.09550407,0.00024262,2]
[388399622,1759155667753,-2022.09550407,0.00024262,2]
[388399623,1759155667785,-567.61393959,0.00024262,2]
[388399624,1759155667951,-2022.09550407,0.00024262,2]
[388399625,1759155667987,-2022.09550407,0.00024262,2]
[388399626,1759155668086,-2022.09550407,0.00024262,2]
[388399627,1759155668123,-2022.09550407,0.00024262,2]
[388399628,1759155668941,-1938.83964553,0.00024262,2]
[388399629,1759155668963,-83.25585854,0.00024262,2]
[388399630,1759155668974,-1938.83964553,0.00024262,2]
[388399631,1759155669001,-83.25585854,0.00024262,2]
[388399632,1759155669011,-1828.37212518,0.00024262,2]
[388399633,1759155676114,-3546.46,0.00023989,2]
[388399634,1759155676141,-2907.09,0.00023989,2]
[388399635,1759155676247,-3612.92,0.00023989,2]
[388399636,1759155676279,-343.95714085,0.00024261,2]
[388399637,1759155676311,-193.72337889,0.00024262,2]
[388399638,1759155676387,-1698.80896052,0.00024262,2]
[388399639,1759155676430,-323.28654355,0.00024262,2]
[388399640,1759155676462,-2022.09550407,0.00024262,2]
[388399641,1759155676494,-2022.09550407,0.00024262,2]
[388399642,1759155676566,-1265.05489662,0.00024262,2]
[388399643,1759155676609,-757.04060745,0.00024262,2]
[388399644,1759155676641,-2099.86840806,0.00024262,2]
[388399645,1759155676672,-2099.86840806,0.00024262,2]
[388399646,1759155676741,-86.45515286,0.00024262,2]
[388399647,1759155676776,-2013.4132552,0.00024262,2]
[388399648,1759155676808,-2099.86840806,0.00024262,2]
[388399649,1759155676874,-1773.44667348,0.00024262,2]
[388399650,1759155676945,-500.0,0.00023989,2]
[388399651,1759155676978,-500.0,0.00023989,2]
[388399652,1759155677010,-326.42173458,0.00024262,2]
[388399653,1759155677044,-2099.86840806,0.00024262,2]
[388399654,1759155677079,-1047.56130666,0.00024262,2]
[388399655,1759155677197,-500.0,0.00023989,2]
[388399656,1759155677207,-500.0,0.00023989,2]
[388399657,1759155677217,-52.3071014,0.00023989,2]
[388399658,1759155679108,417.15472785,0.00025,30]
[388399659,1759155679648,417.15472785,0.00026,60]
[388399660,1759155687327,5000.0,0.00023401,2]
[388399661,1759155696190,-5000.0,0.00023749,2]
[388399662,1759155696237,-0.01,0.00023989,2]
[388399663,1759155696327,-447.6828986,0.00023989,2]
[388399664,1759155696359,-500.0,0.00023989,2]
[388399665,1759155696388,-500.0,0.00023989,2]
[388399666,1759155696417,-201.28085619,0.00023989,2]
[388399667,1759155696448,-500.0,0.00023989,2]
[388399668,1759155696478,-493.62576537,0.00023989,2]
[388399669,1759155696507,-480.0,0.00023989,2]
[388399670,1759155696536,-234.43649287,0.00023989,2]
[388399671,1759155696567,-480.0,0.00023989,2]
[388399672,1759155696596,-839.31,0.00023989,2]
[388399673,1759155696626,-167.33797394,0.00023989,2]
[388399674,1759155696807,-312.66202606,0.00023989,2]
[388399675,1759155696839,-500.0,0.00023989,2]
[388399676,1759155696873,-500.0,0.00023989,2]
[388399677,1759155696905,-500.0,0.00023989,2]
[388399678,1759155696934,-500.0,0.00023989,2]
[388399679,1759155696964,-200.0,0.00023989,2]
[388399680,1759155696995,-520.0,0.00023989,2]
[388399681,1759155697024,-500.0,0.00023989,2]
[388399682,1759155697058,-500.0,0.00023989,2]
[388399683,1759155697090,-500.0,0.00023989,2]
[388399684,1759155697124,-434.68594788,0.00023989,2]
[388399685,1759155697225,-65.31405212,0.00023989,2]
[388399686,1759155697255,-500.0,0.00023989,2]
[388399687,1759155697285,-500.0,0.00023989,2]
[388399688,1759155697314,-500.0,0.00023989,2]
[388399689,1759155697345,-500.0,0.00023989,2]
[388399690,1759155697379,-500.0,0.00023989,2]
[388399691,1759155697410,-282.50752652,0.00023989,2]
[388399692,1759155697442,-500.0,0.00023989,2]
[388399693,1759155697474,-500.0,0.00023989,2]
[388399694,1759155697505,-500.0,0.00023989,2]
[388399695,1759155697536,-500.0,0.00023989,2]
[388399696,1759155697651,-480.0,0.00023989,2]
[388399697,1759155697683,-480.0,0.00023989,2]
[388399698,1759155697717,-500.0,0.00023989,2]
[388399699,1759155697751,-500.0,0.00023989,2]
[388399700,1759155697785,-500.0,0.00023989,2]
[388399701,1759155697820,-500.0,0.00023989,2]
[388399702,1759155697855,-500.0,0.00023989,2]
[388399703,1759155697888,-500.0,0.00023989,2]
[388399704,1759155697923,-500.0,0.00023989,2]
[388399705,1759155697956,-500.0,0.00023989,2]
[388399706,1759155698099,-500.0,0.00023989,2]
[388399707,1759155698135,-500.0,0.00023989,2]
[388399708,1759155698170,-500.0,0.00023989,2]
[388399709,1759155698205,-500.0,0.00023989,2]
[388399710,1759155698238,-500.0,0.00023989,2]
[388399711,1759155698272,-180.65000512,0.00023989,2]
[388399712,1759155698308,-500.0,0.00023989,2]
[388399713,1759155698341,-500.0,0.00023989,2]
[388399714,1759155698372,-811.45,0.00023989,2]
[388399715,1759155698405,-245.35998976,0.00023989,2]
[388399716,1759155699959,-525.09001024,0.00023989,2]
[388399717,1759155699969,-31.9029209,0.00023989,2]
[388399718,1759155699986,-731.0370791,0.00023989,2]
[388399719,1759155699996,-39.4129209,0.00023989,2]
[388399720,1759155706533,-2169.35916672,0.00023749,2]
[388399721,1759155706563,-440.5870791,0.00023989,2]
[388399722,1759155706593,-652.18,0.00023989,2]
[388399723,1759155706623,-912.6425364,0.00024162,2]
[388399724,1759155706653,-657.23,0.00024253,10]
[388399725,1759155706802,-336.01243556,0.00024262,2]
[388399726,1759155706834,-10000.01,0.00024262,2]
[388399727,1759155706865,-10000.01,0.00024262,2]
[388399728,1759155706926,-10000.01,0.00024262,2]
[388399729,1759155707068,-10000.01,0.00024262,2]
[388399730,1759155707244,-336.06243556,0.00024262,2]
[388399731,1759155707271,-9327.88512888,0.00024262,2]
[388399732,1759155716213,-5000.0,0.00023749,2]
[388399733,1759155716252,-0.01,0.00023989,2]
[388399734,1759155716392,-479.99,0.00023989,2]
[388399735,1759155716424,-2466.69,0.00023989,2]
[388399736,1759155716463,-4106.65,0.00023989,2]
[388399737,1759155716579,-2583.41,0.00023989,2]
[388399738,1759155716610,-1005.76211879,0.00024262,2]
[388399739,1759155716642,-1052.3071014,0.00024262,2]
[388399740,1759155716718,-717.05155962,0.00024262,2]
[388399741,1759155716765,-1382.81684844,0.00024262,2]
[388399742,1759155717009,-2099.86840806,0.00024262,2]
[388399743,1759155717048,-934.77107894,0.00024262,2]
[388399744,1759155717123,-1165.09732912,0.00024262,2]
[388399745,1759155726236,-2149.0826396,0.00023439,2]
[388399746,1759155726268,-300.0,0.00023988,2]
[388399747,1759155726299,-500.0,0.00023989,2]
[388399748,1759155726333,-500.0,0.00023989,2]
[388399749,1759155726364,-500.0,0.00023989,2]
[388399750,1759155726401,-500.0,0.00023989,2]
[388399751,1759155726431,-500.0,0.00023989,2]
[388399752,1759155726795,-101.8447208,0.00023989,2]
[388399753,1759155726837,-148.1552792,0.00023989,2]
[388399754,1759155726871,-500.0,0.00023989,2]
[388399755,1759155726904,-500.0,0.00023989,2]
[388399756,1759155726936,-500.0,0.00023989,2]
[388399757,1759155726967,-500.0,0.00023989,2]
[388399758,1759155726999,-500.0,0.00023989,2]
[388399759,1759155727029,-500.0,0.00023989,2]
[388399760,1759155727062,-500.0,0.00023989,2]
[388399761,1759155727094,-500.0,0.00023989,2]
[388399762,1759155727130,-500.0,0.00023989,2]
[388399763,1759155727162,-250.0,0.00023989,2]
[388399764,1759155727223,-500.0,0.00023989,2]
[388399765,1759155727256,-500.0,0.00023989,2]
[388399766,1759155727289,-500.0,0.00023989,2]
[388399767,1759155727322,-500.0,0.00023989,2]
[388399768,1759155727355,-500.0,0.00023989,2]
[388399769,1759155727387,-500.0,0.00023989,2]
[388399770,1759155727420,-500.0,0.00023989,2]
[388399771,1759155727452,-180.65000512,0.00023989,2]
[388399772,1759155727485,-500.0,0.00023989,2]
[388399773,1759155727519,-500.0,0.00023989,2]
[388399774,1759155727550,-62.46022504,0.00023989,2]
[388399775,1759155727671,-513.78953968,0.00023989,2]
[388399776,1759155727701,-155.95996062,0.00023989,2]
[388399777,1759155727733,-1738.91,0.00023989,2]
[388399778,1759155727763,-1651.71,0.00023989,2]
[388399779,1759155727795,-720.64,0.00023989,2]
[388399780,1759155728043,-2139.24094071,0.00024262,2]
[388399781,1759155728083,-2139.24094071,0.00024262,2]
[388399782,1759155728115,-480.0,0.00024263,2]
[388399783,1759155728148,-1.95239063,0.00024263,2]
[388399784,1759155728336,-479.1414559,0.00024263,2]
[388399785,1759155728366,-480.0,0.00024263,2]
[388399786,1759155728398,-480.0,0.00024263,2]
[388399787,1759155728428,-480.0,0.00024263,2]
[388399788,1759155728457,-762.8,0.00024263,2]
[388399789,1759155728487,-559.82,0.00024263,2]
[388399790,1759155728517,-480.0,0.00024263,2]
[388399791,1759155728547,-480.0,0.00024263,2]
[388399792,1759155728578,-480.0,0.00024263,2]
[388399793,1759155728609,-156.4870882,0.00024263,2]
[388399794,1759155728773,-323.5129118,0.00024263,2]
[388399795,1759155728806,-730.43,0.00024263,2]
[388399796,1759155728838,-682.22,0.00024263,2]
[388399797,1759155728869,-281.35,0.00024263,2]
[388399798,1759155728905,-973.9,0.00024263,2]
[388399799,1759155728937,-480.0,0.00024263,2]
[388399800,1759155728969,-480.0,0.00024263,2]
[388399801,1759155728999,-942.4041764,0.00024263,2]
[388399802,1759155730312,-58.8811907,0.00024263,2]
[388399803,1759155730332,-153.4946329,0.00024263,2]
[388399804,1759155730342,-326.5053671,0.00024263,2]
[388399805,1759155730360,-153.4946329,0.00024263,2]
[388399806,1759155730370,-326.5053671,0.00024263,2]
[388399807,1759155730390,-1154.78,0.00024263,2]
[388399808,1759155736759,169.72229008,0.00023299,2]
[388399810,1759155746558,-5000.0,0.00023749,2]
[388399811,1759155746633,-0.01,0.00023988,2]
[388399812,1759155756270,-4420.0862053,0.00023748,2]
[388399813,1759155756316,-1159.8375894,0.00023988,2]
[388399814,1759155756422,-40.1524106,0.00023988,2]
[388399815,1759155756451,-815.92,0.00023989,2]
[388399816,1759155756478,-480.0,0.00023989,2]
[388399817,1759155756508,-500.0,0.00023989,2]
[388399818,1759155756537,-500.0,0.00023989,2]
[388399819,1759155756564,-500.0,0.00023989,2]
[388399820,1759155756594,-500.0,0.00023989,2]
[388399821,1759155756620,-500.0,0.00023989,2]
[388399822,1759155756648,-500.0,0.00023989,2]
[388399823,1759155756679,-500.0,0.00023989,2]
[388399824,1759155757091,-500.0,0.00023989,2]
[388399825,1759155757123,-500.0,0.00023989,2]
[388399826,1759155757157,-500.0,0.00023989,2]
[388399827,1759155757190,-500.0,0.00023989,2]
[388399828,1759155757220,-500.0,0.00023989,2]
[388399829,1759155757253,-500.0,0.00023989,2]
[388399830,1759155757283,-600.0,0.00023989,2]
[388399831,1759155757312,-500.0,0.00023989,2]
[388399832,1759155757343,-500.0,0.00023989,2]
[388399833,1759155757370,-300.01,0.00023989,2]
[388399834,1759155757495,-199.99,0.00023989,2]
[388399835,1759155757525,-500.0,0.00023989,2]
[388399836,1759155757559,-500.0,0.00023989,2]
[388399837,1759155757590,-500.0,0.00023989,2]
[388399838,1759155757621,-267.04925831,0.00023989,2]
[388399839,1759155757652,-500.0,0.00023989,2]
[388399840,1759155757686,-500.0,0.00023989,2]
[388399841,1759155757718,-500.0,0.00023989,2]
[388399842,1759155757752,-500.0,0.00023989,2]
[388399843,1759155757785,-500.0,0.00023989,2]
[388399844,1759155757816,-500.0,0.00023989,2]
[388399845,1759155758606,-27.8551788,0.00023989,2]
[388399846,1759155758626,-472.1448212,0.00023989,2]
[388399847,1759155758636,-27.8551788,0.00023989,2]
[388399848,1759155758659,-65.93148338,0.00023989,2]
[388399849,1759155766282,-5000.0,0.00023749,2]
[388399850,1759155766327,-0.01,0.00023989,2]
[388399851,1759155766430,-406.20333782,0.00023989,2]
[388399852,1759155766460,-500.0,0.00023989,2]
[388399853,1759155766491,-500.0,0.00023989,2]
[388399854,1759155766519,-500.0,0.00023989,2]
[388399855,1759155766549,-500.0,0.00023989,2]
[388399856,1759155766580,-500.0,0.00023989,2]
[388399857,1759155766611,-500.0,0.00023989,2]
[388399858,1759155766641,-500.0,0.00023989,2]
[388399859,1759155766673,-500.0,0.00023989,2]
[388399860,1759155766704,-500.0,0.00023989,2]
[388399861,1759155766816,-500.0,0.00023989,2]
[388399862,1759155766848,-500.0,0.00023989,2]
[388399863,1759155766881,-500.0,0.00023989,2]
[388399864,1759155766913,-500.0,0.00023989,2]
[388399865,1759155766947,-500.0,0.00023989,2]
[388399866,1759155766977,-966.02,0.00023989,2]
[388399867,1759155767007,-488.44,0.00023989,2]
[388399868,1759155767036,-484.98549222,0.00023989,2]
[388399869,1759155767070,-500.0,0.00023989,2]
[388399870,1759155768062,-187.60332436,0.00023989,2]
[388399871,1759155768082,-121.11901556,0.00023989,2]
[388399872,1759155776351,-251.9906327,0.00023749,2]
[388399873,1759155776381,-191.27766008,0.00023989,2]
[388399874,1759155776412,-500.0,0.00023989,2]
[388399875,1759155776443,-500.0,0.00023989,2]
[388399876,1759155776473,-483.4339518,0.00023989,2]
[388399877,1759155776502,-480.0,0.00023989,2]
[388399878,1759155776533,-500.0,0.00023989,2]
[388399879,1759155776563,-800.92,0.00023989,2]
[388399880,1759155776592,-500.0,0.00023989,2]
[388399881,1759155776624,-500.0,0.00023989,2]
[388399882,1759155776655,-84.76551084,0.00023989,2]
[388399883,1759155776775,-415.23448916,0.00023989,2]
[388399884,1759155776804,-168.97616157,0.00023989,2]
[388399885,1759155776832,-500.0,0.00023989,2]
[388399886,1759155776860,-500.0,0.00023989,2]
[388399887,1759155776890,-500.0,0.00023989,2]
[388399888,1759155776920,-239.11076392,0.00023989,2]
[388399889,1759155776952,-500.0,0.00023989,2]
[388399890,1759155776981,-500.0,0.00023989,2]
[388399891,1759155777009,-500.0,0.00023989,2]
[388399892,1759155777041,-600.0,0.00023989,2]
[388399893,1759155777076,-243.64922022,0.00023989,2]
[388399894,1759155777107,-166.06873026,0.00023989,2]
[388399895,1759155777241,-333.93126974,0.00023989,2]
[388399896,1759155777273,-500.0,0.00023989,2]
[388399897,1759155777304,-500.0,0.00023989,2]
[388399898,1759155777341,-480.0,0.00023989,2]
[388399899,1759155777373,-672.9,0.00023989,2]
[388399900,1759155777403,-664.57,0.00023989,2]
[388399901,1759155777433,-480.0,0.00023989,2]
[388399902,1759155777464,-1043.69746052,0.00023989,2]
[388399903,1759155778535,-649.81253948,0.00023989,2]
[388399904,1759155778545,-480.0,0.00023989,2]
[388399905,1759155778555,-289.1657589,0.00023989,2]
[388399906,1759155786628,-5000.0,0.00023749,2]
[388399907,1759155796549,-300.0,0.00023988,2]
[388399908,1759155796587,-190.8342411,0.00023989,2]
[388399909,1759155796631,-566.14,0.00023989,2]
[388399910,1759155796670,-480.0,0.00023989,2]
[388399911,1759155796707,-739.76,0.00023989,2]
[388399912,1759155796745,-500.0,0.00023989,2]
[388399913,1759155796783,-500.0,0.00023989,2]
[388399914,1759155796819,-500.0,0.00023989,2]
[388399915,1759155796857,-500.0,0.00023989,2]
[388399916,1759155796896,-500.0,0.00023989,2]
[388399917,1759155796940,-200.0,0.00023989,2]
[388399918,1759155797237,-46.5415178,0.00023989,2]
[388399920,1759155805180,-433.66721155,0.00023989,2]
[388399921,1759155805211,-480.0,0.00023989,2]
[388399922,1759155805242,-3974.5255769,0.00023989,2]
[388399923,1759155805301,-223.6244231,0.00023989,2]
[388399924,1759155805398,-480.0,0.00023989,2]
[388399925,1759155805428,-480.0,0.00023989,2]
[388399926,1759155805460,-3136.48,0.00023989,2]
[388399927,1759155805490,-500.0,0.00023989,2]
[388399928,1759155805520,-157.05,0.00023989,2]
[388399929,1759155805639,-492.95,0.00023989,2]
[388399930,1759155805680,-500.0,0.00023989,2]
[388399931,1759155805711,-500.0,0.00023989,2]
[388399932,1759155805745,-500.0,0.00023989,2]
[388399933,1759155805775,-500.0,0.00023989,2]
[388399934,1759155805806,-500.0,0.00023989,2]
[388399935,1759155805835,-480.0,0.00023989,2]
[388399936,1759155805864,-739.75,0.00023989,2]
[388399937,1759155805894,-1155.01,0.00023989,2]
[388399938,1759155806076,-250.49,0.00023989,2]
[388399939,1759155816430,-5000.0,0.00023868,2]
[388399940,1759155816475,-0.01,0.00023989,2]
[388399941,1759155816576,-2053.62,0.00023989,2]
[388399942,1759155816604,-160.0,0.00023989,2]
[388399943,1759155816634,-480.0,0.00023989,2]
[388399944,1759155816664,-1483.39,0.00023989,2]
[388399945,1759155816694,-566.89362169,0.00023989,2]
[388399946,1759155816818,-512.20275662,0.00023989,2]
[388399947,1759155820370,1000.0,0.00023272,2]
[388399948,1759155826462,-480.0,0.00023988,2]
[388399949,1759155826495,-480.0,0.00023988,2]
[388399950,1759155826525,-480.0,0.00023988,2]
[388399951,1759155826555,-948.12724338,0.00023989,2]
[388399952,1759155826584,-480.0,0.00023989,2]
[388399953,1759155826613,-480.4966852,0.00023989,2]
[388399954,1759155826643,-480.0,0.00023989,2]
[388399955,1759155826673,-480.0,0.00023989,2]
[388399956,1759155826702,-480.0,0.00023989,2]
[388399957,1759155826814,-514.18,0.00023989,2]
[388399958,1759155826845,-500.0,0.00023989,2]
[388399959,1759155826876,-500.0,0.00023989,2]
[388399960,1759155826908,-228.3726305,0.00023989,2]
[388399961,1759155826940,-1475.9,0.00023989,2]
[388399962,1759155826970,-661.5,0.00023989,2]
[388399963,1759155827000,-300.0,0.00024,2]
[388399964,1759155827375,-122.76214284,0.00024091,2]
[388399965,1759155827395,-300.0,0.00024091,2]
[388399966,1759155827411,-1640.104739,0.00024091,2]
[388399967,1759155827442,-10000.01,0.00024091,2]
[388399968,1759155846509,-5000.0,0.0002385,2]
[388399969,1759155846563,-0.01,0.00023988,2]
[388399970,1759155846638,-479.99,0.00023988,2]
[388399971,1759155846669,-480.0,0.00023988,2]
[388399972,1759155846701,-480.0,0.00023988,2]
[388399973,1759155846733,-300.0,0.00023988,2]
[388399974,1759155846767,-480.0,0.00023989,2]
[388399975,1759155846800,-480.0,0.00023989,2]
[388399976,1759155846832,-765.46,0.00023989,2]
[388399977,1759155846865,-1177.38,0.00023989,2]
[388399978,1759155847034,-714.35,0.00023989,2]
[388399979,1759155856644,-5000.0,0.00023748,2]
[388399980,1759155856693,-0.01,0.00023988,2]
[388399988,1759155866565,-5000.0,0.00023748,2]
[388399989,1759155866605,-0.01,0.00023988,2]
[388399990,1759155876738,-669.54,0.00023988,2]
[388399991,1759155876769,-480.0,0.00023988,2]
[388399992,1759155876802,-1058.55,0.00023988,2]
[388399993,1759155876834,-1564.29,0.00023988,2]
[388399994,1759155876865,-1103.6,0.00023989,2]
[388399995,1759155877231,-248.05,0.00023989,2]
[388399996,1759155885927,5000.0,0.00023401,2]
[388399997,1759155886615,-5000.0,0.00023748,2]
[388399998,1759155886652,-0.01,0.00023988,2]
[388400002,1759155896641,-479.99,0.00023988,2]
[388400003,1759155896673,-3462.38,0.00023988,2]
[388400004,1759155896703,-892.75,0.00023988,2]
[388400005,1759155896787,-329.77,0.00023988,2]
[388400006,1759155906694,-5000.0,0.00023748,2]
[388400007,1759155906739,-0.01,0.00023987,2]
[388400008,1759155906871,-1199.99,0.00023987,2]
[388400009,1759155906904,-150.23,0.00023988,2]
[388400010,1759155906936,-480.0,0.00023988,2]
[388400011,1759155906970,-195.0,0.00023988,2]
[388400012,1759155907004,-300.0,0.00023988,2]
[388400013,1759155907038,-300.0,0.00023988,2]
[388400014,1759155907074,-300.0,0.00023988,2]
[388400015,1759155907109,-300.0,0.00023988,2]
[388400016,1759155907141,-1554.61,0.00023989,2]
[388400017,1759155907679,-440.35,0.00023989,2]
[388400018,1759155911790,-413.25000565,0.00023661,2]
[388400019,1759155915789,-597.13878956,0.00023661,2]
[388400020,1759155917661,-3989.61120479,0.00023661,2]
[388400021,1759155917695,-819.2534935,0.000239,2]
[388400022,1759155917764,-382.28060342,0.00023988,2]
[388400023,1759155918841,-97.71939658,0.00023988,2]
[388400024,1759155918876,-480.0,0.00023988,2]
[388400025,1759155918909,-527.1,0.00023989,2]
[388400026,1759155918943,-838.59,0.00023989,2]
[388400027,1759155918976,-480.0,0.00023989,2]
[388400028,1759155919011,-1127.86,0.00023989,2]
[388400029,1759155919043,-685.62,0.00023989,2]
[388400030,1759155919077,-480.0,0.00023989,2]
[388400031,1759155919109,-86.23120684,0.00023989,2]
[388400032,1759155919305,-393.76879316,0.00023989,2]
[388400033,1759155919416,-480.0,0.00023989,2]
[388400034,1759155919449,-1907.95,0.00023989,2]
[388400035,1759155919482,-810.13,0.00023989,2]
[388400036,1759155919515,-159.99022613,0.00023989,2]
[388400037,1759155919547,-813.73,0.00023989,2]
[388400038,1759155919581,-480.0,0.00023989,2]
[388400039,1759155919725,-696.40954774,0.00023989,2]
[388400040,1759155920788,-3815.36,0.00023988,2]